Workbook

Sheet Лист1
A1: Параметр | E1: Вариант
E2: 8
A3: Loa | E3: 0.12
A4: Lab | E4: 0.45
A5: Lbc | E5: 0.38
A6: Lbd | E6: 1.5
A7: nl | E7: 50
A8: m2 | E8: 18
A9: m3 | E9: 20
A10: m4 | E10: 90
A11: m5 | E11: 450
A12: Is2 | E12: 0.5
A13: Is3 | E13: 1.2
A14: Is4 | E14: 45
A15: Pc1 | E15: 1500
A16: Pc2 | E16: 4000
A17: Kl | E17: =E3/15 -> 0.008
A18: Loa | E18: =E3/E17 -> 15
A19: Lab | E19: =E4/E17 -> 56.25
A20: Lbc | E20: =E5/E17 -> 47.5
A21: Lbd | E21: =E6/E17 -> 187.5
A22: ῳ1 | E22: =(3.14*E7)/30 -> 5.233333333
A23: Va | E23: =E22*E3 -> 0.628
A24: Kv | E24: =E23/100 -> 0.00628
A25: oa | E25: 100
A26: ab | E26: 80.848
A27: bc | E27: 151.445
A28: bd | E28: 79.09
A29: ῳ2 | E29: =(E26*E24)/E4 -> 1.128278756
A30: ῳ3 | E30: =(E27*E24)/E5 -> 2.502827895
A31: ῳ4 | E31: =(E28*E24)/E6 -> 0.3311234667
A32: aa | E32: =E22*E22*E3 -> 3.286533333
A33: ab/a(n) | E33: =E29*E29*E4 -> 0.5728558276
A34: ab/c(n) | E34: =E30*E30*E5 -> 2.380376039
A35: ad/b(n) | E35: =E31*E31*E6 -> 0.1644641253
A36: Ka | E36: =E32/50 -> 0.06573066667
A37: Дина ab/a(n) | E37: =E33/E36 -> 8.715198805
A38: Длина ab/c(n) | E38: =E34/E36 -> 36.21408636
A39: Длина ab/d(n) | E39: =E35/E36 -> 2.50209124
A40: PaS2 | E40: 20.943
A41: PaS3 | E41: 37.5305
A42: PaS4 | E42: 73.489
A43: PaS5 | E43: 71.935
A44: as2 | E44: =E40*E36 -> 1.376597352
A45: as3 | E45: =E41*E36 -> 2.466904785
A46: as4 | E46: =E42*E36 -> 4.830480963
A47: as5 | E47: =E43*E36 -> 4.728335507
A48: kb | E48: 120.1576
A49: nb | E49: 65.747
A50: bd | E50: 2.9694
A51: e2 | E51: =(E48*E36)/E4 -> 17.55119812
A52: e3 | E52: =(E49*E36)/E5 -> 11.37261616
A53: e4 | E53: =(E50*E36)/E6 -> 0.1301204277
A54: G2 | E54: =E8*9.8 -> 176.4
A55: G3 | E55: =E9*9.8 -> 196
A56: G4 | E56: =E10*9.8 -> 882
A57: G5 | E57: =E11*9.8 -> 4410
A58: Pин2 | E58: =E8*E44 -> 24.77875234
A59: Pин3 | E59: =E9*E45 -> 49.33809571
A60: Pин4 | E60: =E10*E46 -> 434.7432866
A61: Pин5 | E61: =E11*E47 -> 2127.750978
A62: Мин2 | E62: =E51*E12 -> 8.775599059
A63: Мин3 | E63: =E52*E13 -> 13.64713939
A64: Мин4 | E64: =E53*E14 -> 5.855419248
A65: h2 | E65: =E62/E58 -> 0.3541582296
A66: h3 | E66: =E63/E59 -> 0.276604502
A67: h4 | E67: =E64/E60 -> 0.01346868239
A68: Длина h2 | E68: =E65/E17 -> 44.2697787
A69: Длина h3 | E69: =E66/E17 -> 34.57556275
A70: Длина h4 | E70: =E67/E17 -> 1.683585298

Sheet Лист2

Sheet Лист3
